[Event "1000 GM Labor Day Super Swiss 2024"]
[Site "San Jose"]
[Date "2024.09.03"]
[Round "8.10"]
[White "Wu, Derek"]
[Black "Piasetski, Leon"]
[Result "0-1"]
[Annotator "TA"]
[ECO "C02"]
[WhiteElo "2278"]
[BlackElo "2167"]
[PlyCount "68"]
[EventDate "2024.08.30"]
[EventType "swiss"]
[EventCountry "USA"]
[SourceTitle "playchess.com"]
[Source "ChessBase"]
[SourceQuality "1"]
[TimeControl "5400+30"]

{[%evp 18,68,27,25,19,0,-15,-77,-18,-13,8,-58,-50,-39,-44,-80,-67,-96,-41,-41,-18,-95,22,16,0,0,26,26,27,0,0,0,133,137,124,80,72,89,77,-42,-64,-955,-950,-945,-950,-950,-923,-965,-984,-29992,-29989,-29994,-29993]} 1. e4 {[%emt 0:00:03][%cal Be2e4,Be4e5][%mdl 32]} e6 {[%emt 0:07:17]} 2. d4 {[%emt 0:00:10]} d5 {[%emt 0:00:12]} 3. e5 {[%emt 0:00:18]} c5 {[%emt 0:00:29]} 4. c3 {[%emt 0:00:04]} Nc6 {[%emt 0:00:21]} 5. Nf3 {[%emt 0:00:05]} Bd7 {[%emt 0:00:16]} 6. Be2 {[%emt 0:00:11]} f6 {[%emt 0:04:57]} 7. O-O {[%emt 0:00:11]} fxe5 {[%emt 0:00:14]} 8. Nxe5 {[%emt 0:00:21]} Nxe5 {[%emt 0:00:08]} 9. dxe5 {[%emt 0:00:03]} Qc7 {[%emt 0:00:15]} 10. Re1 {[%emt 0:00:15]} O-O-O {[%emt 0:00:20]} 11. Bf4 {[%emt 0:03:44]} Ne7 {[%emt 0:01:07]} 12. Bf1 {[%emt 0:03:38]} (12. Bd3 $11) 12... Ng6 {[%emt 0:11:28]} (12... h6 $17) 13. Bg3 {[%emt 0:00:36]} Be7 {[%emt 0:00:09]} 14. a4 {[%emt 0:04:30]} (14. c4 $11 d4 15. Nd2) 14... h5 $1 $15 {[%emt 0:08:03] Threatens to win with ...h4.} 15. h3 {[%emt 0:00:39]} Nh4 {[%emt 0:04:12]} 16. c4 {[%emt 0:10:14]} d4 {[%emt 0:03:12]} 17. Nd2 {[%emt 0:02:43]} Bc6 {[%emt 0:05:33] Black is more active.} (17... Nf5 $17 {Hoping for ...Nxg3.} 18. Ra3 Kb8) 18. Ne4 {[%emt 0:02:00]} Bxe4 {[%emt 0:00:13]} 19. Bxh4 {[%emt 0:03:47]} (19. Rxe4 $11 Nf5 20. Bh2) 19... Bxh4 {[%emt 0:08:27]} (19... Bc6 $17 20. Bxe7 Qxe7) 20. Rxe4 $11 {[%emt 0:00:06]} Be7 {[%emt 0:00:23]} 21. Bd3 {[%emt 0:02:12]} Rdf8 {[%emt 0:01:00]} 22. a5 {[%emt 0:01:42]} a6 {[%emt 0:00:43]} 23. Re2 {[%emt 0:03:20]} g5 {[%emt 0:08:11]} 24. Be4 {[%emt 0:01:51] Prevents g4.} g4 {[%emt 0:00:46] [#]} (24... Rf7 $11 {remains equal.}) 25. Ra3 $1 $16 {[%emt 0:01:13]} Rf4 {[%emt 0:08:19]} (25... Qxe5 $2 26. Bxb7+ Kxb7 27. Rxe5 $18) 26. Rb3 {[%emt 0:03:07]} Rxe4 {[%emt 0:00:13]} 27. Rxe4 {[%emt 0:00:04]} Bd8 {[%emt 0:00:24]} 28. hxg4 {[%emt 0:01:07]} ({Better is} 28. Qe2 $16) 28... Qh7 $15 {[%emt 0:00:20]} 29. Qd3 $2 {[%emt 0:08:10][%mdl 8192] Now White is beyond hope.} (29. f3 $15) 29... hxg4 $19 {[%emt 0:01:19][%csl Gh8][%cal Rh7h1]} (29... Bxa5 $2 30. g5 Qf5 31. g6 $18) 30. Kf1 {[%emt 0:00:13]} Qh1+ {[%emt 0:02:02]} 31. Ke2 {[%emt 0:00:04]} Qxg2 {[%emt 0:00:12][%cal Oh8h3] Strongly threatening ...Rh3!} 32. Rf4 {[%emt 0:07:57] [#]} Rh1 $1 {[%emt 0:04:34] ( -> ...Qf1+)} ({Stronger than} 32... Bxa5 33. Qe4 Qxe4+ 34. Rxe4 $11) (32... Rh3 33. Qg6 Rxb3 34. Qxe6+ Kb8 35. Qd6+ Ka7 36. Qxc5+ Kb8 37. Qd6+ Kc8 38. Qe6+ Kb8 39. Qd6+ Kc8 40. Qe6+ Kb8 41. Qd6+ $11) 33. Kd2 {[%emt 0:05:01]} Bg5 {[%emt 0:05:25]} 34. Qg3 {[%emt 0:00:20]} Qe4 {[%emt 0:01:28] Weighted Error Value: White=0.59/Black=0.22 (precise) .  Loses game:     	White=1     	---        Mistake:       	White=4     	Black=4      Inaccurate:     	White=4     	Black=1      OK:         	White=3     	Black=5      Best:        	White=2     	Black=4      Strong:       	White=1     	Black=1} ({Inferior is} 34... Bxf4+ 35. Qxf4 Qc6 36. Qf8+ Kc7 37. Rg3 $11) 0-1

[Event "1000 GM Labor Day Super Swiss 2024"]
[Site "San Jose"]
[Date "2024.09.03"]
[Round "8.11"]
[White "Tang, Dylan"]
[Black "Garduno Huerta, Joshua Emiliano"]
[Result "1/2-1/2"]
[Annotator "TA"]
[ECO "C60"]
[WhiteElo "2092"]
[BlackElo "2056"]
[PlyCount "68"]
[EventDate "2024.08.30"]
[EventType "swiss"]
[EventCountry "USA"]
[SourceTitle "playchess.com"]
[Source "ChessBase"]
[SourceQuality "1"]
[TimeControl "5400+30"]

{[%evp 10,68,17,21,31,40,27,31,39,22,30,21,27,21,24,11,15,18,16,14,36,42,42,8,47,10,67,80,100,109,112,87,120,106,113,112,177,167,171,132,279,276,269,260,240,122,122,122,139,135,128,95,116,95,95,95,95,85,95,95,95]} 1. e4 e5 2. Nf3 {[%emt 0:01:00]} Nc6 {[%emt 0:02:42]} 3. Bb5 {[%emt 0:09:26][%cal Bf1b5,Bb5a4,Ba4b3][%mdl 32]} Nge7 {[%emt 0:06:18]} 4. c3 {[%emt 0:03:37][%cal Bc2c3,Bc3d4,Bd4d5][%mdl 32]} g6 {[%emt 0:00:40]} 5. d4 {[%emt 0:02:19]} exd4 {[%emt 0:00:31]} 6. cxd4 {[%emt 0:00:23] d5 would now be deadly.} a6 {[%emt 0:00:26]} 7. Ba4 {[%emt 0:01:03] aiming for d5.} b5 {[%emt 0:00:07]} 8. Bb3 {[%emt 0:00:08]} Bg7 {[%emt 0:00:09] White is slightly better.} 9. O-O {[%emt 0:00:56]} O-O {[%emt 0:00:34]} 10. d5 {[%emt 0:00:48]} Na5 {[%emt 0:00:06]} 11. Bd2 {[%emt 0:00:05]} Nxb3 {[%emt 0:00:06]} 12. Qxb3 {[%emt 0:00:04]} c5 {[%emt 0:00:26]} 13. Bc3 $36 {[%emt 0:11:07][%mdl 2048] Black is under pressure.} d6 {[%emt 0:00:11]} 14. a4 {[%emt 0:09:12]} Bd7 {[%emt 0:05:03]} 15. Bxg7 {[%emt 0:01:38]} Kxg7 {[%emt 0:00:23]} 16. Nc3 {[%emt 0:02:42]} Qb6 {[%emt 0:14:24]} 17. Nd2 {[%emt 0:10:36]} Rfb8 {[%emt 0:10:18]} (17... Rae8 $11) 18. axb5 $14 {[%emt 0:01:57]} Bxb5 {[%emt 0:14:41]} 19. Nxb5 {[%emt 0:02:21]} Qxb5 {[%emt 0:01:33]} 20. Qc3+ {[%emt 0:01:39]} f6 {[%emt 0:02:33]} 21. Nc4 {[%emt 0:00:38]} Nc8 {[%emt 0:00:34]} 22. Ra3 {[%emt 0:01:31] Prevents Qb3. White has more active pieces.} Ra7 {[%emt 0:08:43]} (22... a5 $16 {might work better.}) 23. Rfa1 {[%emt 0:04:51]} Qb4 {[%emt 0:05:49]} 24. f3 {[%emt 0:04:01][%cal Bf2f3,Bf3f4][%mdl 32]} (24. Rxa6 $2 Rxa6 25. Rc1 Qxc3 26. bxc3 Ra4 $19) 24... Nb6 {[%emt 0:04:13] [#]} (24... a5 $16 25. Rxa5 (25. Nxa5 Qxb2 26. Qxb2 Rxb2 $14) 25... Rxa5 26. Rxa5 Kf7) 25. Rb3 $1 $18 {[%emt 0:01:42]} (25. Rxa6 $2 {too greedy.} Rxa6 26. Rxa6 Nxc4 $19 (26... Qxc4 $2 27. Ra7+ Kh6 28. Qe3+ g5 29. h4 $19) (26... Qxc3 $2 27. bxc3 Nxc4 28. g3 $19)) (25. Nxd6 Rd7 $16) 25... Nxc4 {[%emt 0:04:01]} 26. Rxb4 {[%emt 0:00:07]} Rxb4 {[%emt 0:00:03] [#]} 27. b3 {[%emt 0:00:34]} (27. f4 $1 $18) 27... Ne5 $16 {[%emt 0:00:42]} 28. Ra4 {[%emt 0:03:19]} a5 {[%emt 0:04:02]} 29. f4 {[%emt 0:02:16]} Nf7 {[%emt 0:00:12]} 30. h4 {[%emt 0:03:34] Strongly threatening g4. White is better.} Re7 {[%emt 0:01:28]} 31. Qd3 {[%emt 0:01:02] Hoping for Rxb4.} ({Much worse is} 31. Rxa5 $6 Rbxe4 32. Ra4 Re3 $11) 31... Reb7 {[%emt 0:00:50][%cal Oc5c4] Threatens to win with ...c4!} 32. Rxb4 {[%emt 0:01:32]} ({Much weaker is} 32. Rxa5 $6 Rxb3 33. Qc2 Rb2 $11) 32... Rxb4 {[%emt 0:03:51]} 33. Kf2 {[%emt 0:01:03][%cal Oh4h5]} a4 {[%emt 0:02:22]} 34. bxa4 {[%emt 0:00:58]} Rxa4 {[%emt 0:00:30] Weighted Error Value: White=0.16 (very precise) /Black=0.19 (very precise) .  Mistake:       	White=1     	Black=3      Inaccurate:     	White=2     	Black=1      OK:         	White=12    	Black=9      Best:        	---       	Black=3      Strong:       	White=1     	---} 1/2-1/2

[Event "1000 GM Labor Day Super Swiss 2024"]
[Site "San Jose"]
[Date "2024.09.03"]
[Round "8.12"]
[White "Montes Orozco, Miguel Angel"]
[Black "Gui, Suyuan"]
[Result "1-0"]
[Annotator "TA"]
[ECO "D97"]
[WhiteElo "2155"]
[BlackElo "2033"]
[PlyCount "84"]
[EventDate "2024.08.30"]
[EventType "swiss"]
[EventCountry "USA"]
[SourceTitle "playchess.com"]
[Source "ChessBase"]
[SourceQuality "1"]
[TimeControl "5400+30"]

{[%evp 14,84,24,12,25,19,38,33,34,35,33,38,32,23,51,35,54,29,46,29,105,68,135,110,168,154,142,150,218,208,261,258,255,229,215,155,151,92,183,181,259,253,269,271,308,257,262,222,552,565,667,665,637,456,535,533,544,549,552,552,605,635,650,654,661,644,715,708,709,675,763,741,2066]} 1. Nf3 {[%emt 0:00:27]} Nf6 {[%emt 0:00:14]} 2. d4 {[%emt 0:02:12]} g6 {[%emt 0:00:18]} 3. c4 {[%emt 0:00:53]} Bg7 {[%emt 0:00:08]} 4. Nc3 {[%emt 0:00:32]} d5 {[%emt 0:00:07]} 5. Qb3 {[%emt 0:03:31]} dxc4 {[%emt 0:00:16]} 6. Qxc4 {[%emt 0:00:04]} O-O {[%emt 0:00:11]} 7. e4 {[%emt 0:00:03]} Nc6 {[%emt 0:00:04]} 8. Be2 {[%emt 0:01:25]} e5 {[%emt 0:00:10]} 9. d5 {[%emt 0:00:12]} (9. Nxe5 Nxd4 10. O-O Nxe4 11. Nxe4 Be6 $17 (11... Bxe5 12. Bg5 $17)) 9... Nd4 {[%emt 0:00:07]} 10. Nxd4 {[%emt 0:00:05]} (10. Nxe5 $2 Nc2+ 11. Kd1 Nxa1 $19) 10... exd4 {[%emt 0:00:05] White is slightly better.} 11. Qxd4 {[%emt 0:00:03]} c6 {[%emt 0:00:12]} 12. Qc4 {[%emt 0:01:48]} b5 {[%emt 0:00:07]} 13. Qxc6 {[%emt 0:03:33]} Bd7 {[%emt 0:00:07]} 14. Qd6 {[%emt 0:00:52][%cal Of2f3]} Re8 {[%emt 0:00:07]} 15. f3 {[%emt 0:00:04][%cal Oe1g1]} ({Of course not} 15. Bxb5 Nxe4 16. Qxd7 Nf6+ $15 (16... Nxc3+ $2 {too greedy.} 17. Qxe8+ Qxe8+ 18. Bxe8 $18) (16... Bxc3+ 17. bxc3 Nf6+ 18. Qxe8+ Nxe8 19. Bc6 $16) (16... Nxc3+ $2 17. Qxe8+ Qxe8+ 18. Bxe8 $18) (16... Bxc3+ 17. bxc3 Nf6+ 18. Qxe8+ Nxe8 19. Bc6 $16)) 15... Nh5 $1 {[%emt 0:00:10] Strongly threatening ...Be5.} 16. g3 {[%emt 0:10:00]} ({Reject} 16. Nxb5 a6 17. Nc7 Be5 18. Nxe8 Bxd6 19. Nxd6 Qh4+ 20. Kf1 Ng3+ 21. hxg3 Qxh1+ 22. Kf2 h5 $17) (16. Be3 $5) 16... Qc8 {[%emt 0:12:02]} (16... f5 $1 $11 {remains equal.}) 17. Nxb5 {[%emt 0:23:59] And now Qc7 would win.} a6 {[%emt 0:08:38]} (17... f5 $1 $14) 18. Nc7 $16 {[%emt 0:05:17][%cal Bb5c7,Bc7e8,Be8d6][%mdl 32]} Be5 {[%emt 0:03:10]} 19. Nxe8 {[%emt 0:00:07]} Bxd6 {[%emt 0:00:12]} 20. Nxd6 {[%emt 0:00:05]} Qc2 {[%emt 0:09:00]} (20... Qb8 $16 21. Nc4 Bb5) 21. Be3 $1 $18 {[%emt 0:01:24]} f5 {[%emt 0:05:52] [#]} 22. Nc4 $1 {[%emt 0:09:22]} fxe4 {[%emt 0:02:37]} 23. Rc1 {[%emt 0:00:16]} Qa4 {[%emt 0:00:15]} 24. fxe4 {[%emt 0:00:09] 0-0 is the strong threat.} Bh3 {[%emt 0:03:56] [#]} 25. b3 {[%emt 0:14:19]} ({White should try} 25. e5 $1) 25... Qe8 {[%emt 0:10:27]} (25... Qxa2 $16 26. d6 Qxb3) 26. Bf3 {[%emt 0:00:45][%cal Be2f3,Bf3g2,Bg2h3][%mdl 32]} Rd8 {[%emt 0:05:27]} (26... Qf7 {might work better.} 27. Ke2 Nf6) 27. e5 {[%emt 0:01:45]} Ng7 {[%emt 0:01:39]} 28. Kd2 {[%emt 0:03:36]} Be6 {[%emt 0:01:49]} 29. Nd6 {[%emt 0:00:29] Dodges Qf7} Qf8 {[%emt 0:01:28]} 30. Rhf1 {[%emt 0:00:36]} Bh3 {[%emt 0:00:39] [#]} (30... Nf5 {is more resistant.}) 31. Bg2 $1 {[%emt 0:01:06][%mdl 512] White is clearly winning.} Qe7 {[%emt 0:00:26]} (31... Bf5 32. Bc5) 32. Bxh3 {[%emt 0:00:26]} Qxe5 {[%emt 0:00:05]} 33. Nc4 {[%emt 0:08:29]} Qxd5+ {[%emt 0:03:31]} 34. Kc3 {[%emt 0:00:05]} Qh5 {[%emt 0:01:52]} 35. Bb6 {[%emt 0:00:25][%cal Be3b6,Bb6c7,Bc7d6][%mdl 32]} Rb8 {[%emt 0:01:53][%cal Bd8b8,Bb8b7,Bb7f7][%mdl 32]} 36. Bc7 {[%emt 0:01:46]} Rb7 {[%emt 0:01:27]} 37. Bd6 {[%emt 0:01:18]} Nf5 {[%emt 0:00:23]} 38. Bxf5 {[%emt 0:01:21]} gxf5 {[%emt 0:00:05]} 39. Rc2 {[%emt 0:00:38]} Rf7 {[%emt 0:01:20]} 40. Kb2 {[%emt 0:00:17]} h6 {[%emt 0:00:57]} 41. Rd2 {[%emt 0:00:11]} Kh7 {[%emt 0:00:58]} 42. Re1 {[%emt 0:00:24]} Qf3 {[%emt 0:01:18] Weighted Error Value: White=0.24 (precise) /Black=0.44.  Mistake:       	White=1     	Black=6      Inaccurate:     	White=1     	---        OK:         	White=13    	Black=9      Best:        	White=2     	Black=2      Strong:       	White=2     	Black=1      Brilliant:      	White=1     	---} 1-0

[Event "1000 GM Labor Day Super Swiss 2024"]
[Site "San Jose"]
[Date "2024.09.03"]
[Round "8.13"]
[White "Zuluaga Mancilla, Cesar"]
[Black "Bhatta, Rohit"]
[Result "1-0"]
[Annotator "TA"]
[ECO "D02"]
[WhiteElo "2166"]
[BlackElo "2025"]
[PlyCount "67"]
[EventDate "2024.08.30"]
[EventType "swiss"]
[EventCountry "USA"]
[SourceTitle "playchess.com"]
[Source "ChessBase"]
[SourceQuality "1"]
[TimeControl "5400+30"]

{[%evp 16,67,-12,-14,-18,-3,0,-18,-5,-14,-14,-2,50,45,45,47,52,55,40,34,52,41,112,103,218,209,223,205,231,240,301,291,288,279,314,320,566,568,502,441,741,745,921,993,1388,418,1298,1381,1294,1274,1466,1425,29976,4565]} 1. d4 {[%emt 0:04:40]} Nf6 {[%emt 0:06:02]} 2. Nf3 {[%emt 0:00:27]} d5 {[%emt 0:00:04]} 3. Bf4 {[%emt 0:03:03]} c5 {[%emt 0:00:33]} 4. e3 {[%emt 0:00:16]} Nc6 {[%emt 0:00:20]} 5. c3 {[%emt 0:00:17]} Qb6 {[%emt 0:00:28]} 6. Qb3 {[%emt 0:00:09]} c4 {[%emt 0:00:22]} 7. Qc2 {[%emt 0:00:05]} Bf5 {[%emt 0:00:33]} 8. Qc1 {[%emt 0:00:01]} h6 {[%emt 0:01:14]} 9. Nbd2 {[%emt 0:00:08]} e6 {[%emt 0:00:23]} 10. Be2 {[%emt 0:00:56]} Be7 {[%emt 0:00:22]} 11. Ne5 {[%emt 0:00:25]} Nxe5 {[%emt 0:02:28] The position is equal.} 12. Bxe5 {[%emt 0:00:08]} O-O {[%emt 0:00:41]} 13. O-O {[%emt 0:04:22]} Bd6 {[%emt 0:09:59]} (13... Qc6 $11) 14. Bxf6 $14 {[%emt 0:08:00]} gxf6 {[%emt 0:00:31] [#]} 15. e4 $1 {[%emt 0:00:41]} Bg6 {[%emt 0:14:41]} 16. exd5 {[%emt 0:00:37]} exd5 {[%emt 0:00:05]} 17. Bf3 {[%emt 0:01:30][%cal Of1e1]} Qc6 {[%emt 0:01:24]} 18. Re1 $36 {[%emt 0:00:08][%mdl 2048] White is more active.} Bd3 {[%emt 0:19:51]} (18... f5 $1 $14) 19. Nf1 $16 {[%emt 0:03:05]} Bxf1 {[%emt 0:00:37]} (19... Kg7 $16) 20. Kxf1 $18 {[%emt 0:00:10]} Kg7 {[%emt 0:00:48]} 21. Qc2 {[%emt 0:00:42]} Rfd8 {[%emt 0:09:02]} 22. Qf5 {[%emt 0:03:49]} Bf8 {[%emt 0:01:05]} 23. Qg4+ {[%emt 0:10:59]} Kh8 {[%emt 0:00:56]} 24. Qh5 {[%emt 0:00:06]} Qd7 {[%emt 0:04:15]} 25. Re3 {[%emt 0:01:47]} a5 $2 {[%emt 0:04:30]} (25... Re8 26. Qxd5 Bd6 27. Qxb7 (27. Qxc4 Rxe3 28. fxe3 Re8 $18) 27... Qxb7 28. Bxb7 Rxe3 29. Bxa8 (29. fxe3 Rb8 $16) 29... Re8) 26. Bg4 {[%emt 0:09:33]} Qc7 {[%emt 0:01:36]} 27. Rae1 {[%emt 0:05:30] [#] And now Bf5 would win. Black is weak on the light squares} b5 {[%emt 0:03:39]} (27... Bg7 $142 28. Re7 Qf4) 28. Bf5 {[%emt 0:00:56][%cal Oe3e7] Threatens to win with Re7!} Ra7 {[%emt 0:01:59]} 29. Re8 {[%emt 0:04:29]} Kg7 {[%emt 0:00:23]} 30. Qg4+ {[%emt 0:00:38]} Kh8 {[%emt 0:00:17]} 31. Qh4 {[%emt 0:02:07][%csl LRf6,LRh6]} Kg7 {[%emt 0:00:53]} 32. R8e3 {[%emt 0:01:42]} Bd6 {[%emt 0:02:28] Inhibits f4.} 33. Qg4+ {[%emt 0:05:23]} Kf8 {[%emt 0:02:35]} 34. Bh7 {[%emt 0:00:31] White took control after the opening.   Weighted Error Value: White=0.36/Black=0.72.  Mistake:       	---       	Black=5      OK:         	White=12    	Black=7      Best:        	White=2     	Black=1} 1-0

[Event "1000 GM Labor Day Super Swiss 2024"]
[Site "San Jose"]
[Date "2024.09.03"]
[Round "8.14"]
[White "Harish, Neeraj"]
[Black "Alfaro, William"]
[Result "0-1"]
[Annotator "RC"]
[ECO "B38"]
[WhiteElo "2118"]
[BlackElo "2137"]
[PlyCount "180"]
[EventDate "2024.08.30"]
[EventType "swiss"]
[EventCountry "USA"]
[SourceTitle "playchess.com"]
[Source "ChessBase"]
[SourceQuality "1"]
[TimeControl "5400+30"]

1. e4 {[%emt 0:00:03]} c5 {[%emt 0:13:04]} 2. Nf3 {[%emt 0:00:10]} Nc6 {[%emt 0:00:05]} 3. d4 {[%emt 0:00:06]} cxd4 {[%emt 0:00:02]} 4. Nxd4 {[%emt 0:00:09]} g6 {[%emt 0:00:01]} 5. c4 {[%emt 0:00:10]} Bg7 {[%emt 0:00:01]} 6. Be3 {[%emt 0:00:07]} Nf6 {[%emt 0:00:02]} 7. Nc3 {[%emt 0:00:12]} O-O {[%emt 0:00:02]} 8. Be2 {[%emt 0:00:08]} d6 {[%emt 0:00:01]} 9. O-O {[%emt 0:00:08]} Bd7 {[%emt 0:00:03]} 10. h3 {[%emt 0:00:25]} Nxd4 {[%emt 0:00:12]} 11. Bxd4 {[%emt 0:00:06]} Bc6 {[%emt 0:00:04]} 12. Qc2 {[%emt 0:00:07]} a5 {[%emt 0:00:07]} 13. Rad1 {[%emt 0:00:06]} a4 {[%emt 0:00:07]} 14. c5 {[%emt 0:00:08]} Qa5 {[%emt 0:00:02]} 15. cxd6 {[%emt 0:00:12]} exd6 {[%emt 0:00:01]} 16. Qd3 {[%emt 0:00:12]} Rfe8 {[%emt 0:02:24]} 17. f3 {[%emt 0:00:27]} a3 {[%emt 0:10:23]} 18. b3 {[%emt 0:00:12]} Rad8 {[%emt 0:01:53]} 19. b4 {[%emt 0:13:17]} Qxb4 {[%emt 0:06:28]} 20. Rb1 {[%emt 0:00:17]} Qa5 {[%emt 0:01:28]} 21. Bb6 {[%emt 0:00:58]} Qa8 {[%emt 0:05:32]} 22. Bxd8 {[%emt 0:00:31]} Qxd8 {[%emt 0:00:25]} 23. Rfd1 {[%emt 0:06:11]} Nh5 {[%emt 0:00:37]} 24. Qd2 {[%emt 0:08:56]} Be5 {[%emt 0:07:20]} 25. Bc4 {[%emt 1:09:42]} Qa5 {[%emt 0:06:06]} 26. Nb5 {[%emt 0:00:00]} Qb6+ {[%emt 0:06:15]} 27. Nd4 {[%emt 0:00:00]} Qc5 {[%emt 0:04:00]} 28. Rb4 {[%emt 0:00:00]} Nf4 {[%emt 0:15:41]} 29. Kh1 {[%emt 0:00:00]} Kg7 {[%emt 0:02:39]} 30. Bb5 {[%emt 0:00:00]} Nh5 {[%emt 0:04:59]} 31. Rc4 {[%emt 0:00:00]} Ng3+ {[%emt 0:00:55]} 32. Kg1 {[%emt 0:00:00]} Bxd4+ {[%emt 0:00:25]} 33. Rxd4 {[%emt 0:00:00]} Bxb5 {[%emt 0:00:21]} 34. Kh2 {[%emt 0:00:00]} Nf1+ {[%emt 0:00:32]} 35. Rxf1 {[%emt 0:00:00]} Bxf1 {[%emt 0:00:03]} 36. Rxd6 {[%emt 0:00:00]} Bb5 {[%emt 0:02:40]} 37. Rd5 {[%emt 0:00:00]} Qc7+ {[%emt 0:00:25]} 38. Kh1 {[%emt 0:00:00]} Bc6 {[%emt 0:00:05]} 39. Qc3+ {[%emt 0:00:00]} Kg8 {[%emt 0:00:06]} 40. Rd3 {[%emt 0:00:00]} Qe7 {[%emt 0:00:22]} 41. Qa5 {[%emt 0:00:00]} h5 {[%emt 0:00:42]} 42. Rxa3 {[%emt 0:00:00]} Rd8 {[%emt 0:00:17]} 43. Re3 {[%emt 0:00:00]} Rd1+ {[%emt 0:01:27]} 44. Re1 {[%emt 0:00:00]} Rxe1+ {[%emt 0:01:22]} 45. Qxe1 {[%emt 0:00:00]} Qe5 {[%emt 0:13:14]} 46. Qc1 {[%emt 0:00:00]} Qd4 {[%emt 0:00:00]} 47. a3 {[%emt 0:00:00]} Kg7 {[%emt 0:00:00]} 48. Kh2 {[%emt 0:00:00]} Kh7 {[%emt 0:00:00]} 49. Qf4 {[%emt 0:00:00]} Qd7 {[%emt 0:00:00]} 50. Qf6 {[%emt 0:00:00]} Qe6 {[%emt 0:00:00]} 51. Qc3 {[%emt 0:00:00]} Qd6+ {[%emt 0:00:00]} 52. Kh1 {[%emt 0:00:00]} Kg8 {[%emt 0:00:00]} 53. Qe3 {[%emt 0:00:00]} Bd7 {[%emt 0:00:00]} 54. Qb3 {[%emt 0:00:00]} Qc6 {[%emt 0:00:00]} 55. Qb4 {[%emt 0:00:00]} Be6 {[%emt 0:00:00]} 56. Kh2 {[%emt 0:00:00]} b5 {[%emt 0:00:00]} 57. Qe7 {[%emt 0:00:00]} Bc4 {[%emt 0:00:00]} 58. Qd8+ {[%emt 0:00:00]} Kg7 {[%emt 0:00:00]} 59. Qd4+ {[%emt 0:00:00]} Qf6 {[%emt 0:00:00]} 60. Qc5 {[%emt 0:00:00]} Qb2 {[%emt 0:00:00]} 61. Kg1 {[%emt 0:00:00]} Kh7 {[%emt 0:00:22]} 62. Qf8 {[%emt 0:00:00]} Qd2 {[%emt 0:00:27]} 63. Kh2 {[%emt 0:00:00]} Qf2 {[%emt 0:01:06]} 64. Kh1 {[%emt 0:00:00]} Qa2 {[%emt 0:00:22]} 65. Kg1 {[%emt 0:00:00]} Bd3 {[%emt 0:02:13]} 66. Qd6 {[%emt 0:02:33]} Bc4 {[%emt 0:01:13]} 67. Qf8 {[%emt 0:00:21]} Qd2 {[%emt 0:00:13]} 68. Kh2 {[%emt 0:01:07]} Qf4+ {[%emt 0:00:01]} 69. Kh1 {[%emt 0:00:38]} g5 {[%emt 0:00:01]} 70. Qc5 {[%emt 0:01:42]} Be2 {[%emt 0:02:21]} 71. Kg1 {[%emt 0:01:23]} Bxf3 {[%emt 0:01:56]} 72. gxf3 {[%emt 0:00:08]} Qg3+ {[%emt 0:00:02]} 73. Kh1 {[%emt 0:00:46]} Qxh3+ {[%emt 0:00:05]} 74. Kg1 {[%emt 0:00:04]} Qg3+ {[%emt 0:00:02]} 75. Kh1 {[%emt 0:00:23]} Qxf3+ {[%emt 0:00:02]} 76. Kg1 {[%emt 0:00:06]} Qxe4 {[%emt 0:01:28]} 77. Qxb5 {[%emt 0:00:20]} Qe3+ {[%emt 0:00:28]} 78. Kh1 {[%emt 0:00:55]} Qe4+ {[%emt 0:00:55]} 79. Kg1 {[%emt 0:00:11]} Kg6 {[%emt 0:00:05]} 80. a4 {[%emt 0:01:11]} h4 {[%emt 0:00:02]} 81. a5 {[%emt 0:01:20]} h3 {[%emt 0:01:45]} 82. Qf1 {[%emt 0:00:23]} g4 {[%emt 0:00:10]} 83. a6 {[%emt 0:00:29]} Qd4+ {[%emt 0:01:22]} 84. Kh2 {[%emt 0:00:32]} f5 {[%emt 0:00:23]} 85. Qe2 {[%emt 0:00:42]} Kf6 {[%emt 0:01:36]} 86. Kg3 {[%emt 0:02:22]} Qd6+ {[%emt 0:00:38]} 87. Kh4 {[%emt 0:00:27]} h2 {[%emt 0:00:20]} 88. Qf1 {[%emt 0:01:53]} Qc6 {[%emt 0:00:50]} 89. Qa1+ {[%emt 0:01:17]} Kg6 {[%emt 0:00:09]} 90. a7 {[%emt 0:00:23]} h1=Q+ {[%emt 0:00:07]} 0-1

[Event "1000 GM Labor Day Super Swiss 2024"]
[Site "San Jose"]
[Date "2024.09.03"]
[Round "8.15"]
[White "Gonzalez Zharikov, Andrey"]
[Black "Champsi, Imran"]
[Result "0-1"]
[Annotator "NA RC"]
[ECO "B76"]
[WhiteElo "2070"]
[BlackElo "2012"]
[PlyCount "50"]
[EventDate "2024.08.30"]
[EventType "swiss"]
[EventCountry "USA"]
[SourceTitle "playchess.com"]
[Source "ChessBase"]
[SourceQuality "1"]
[TimeControl "5400+30"]

1. e4 {[%emt 0:00:03]} c5 {[%emt 0:00:11]} 2. Nf3 {[%emt 0:00:06]} d6 {[%emt 0:00:23]} 3. d4 {[%emt 0:00:07]} cxd4 {[%emt 0:00:02]} 4. Nxd4 {[%emt 0:00:07]} Nf6 {[%emt 0:00:07]} 5. Nc3 {[%emt 0:00:05]} g6 {[%emt 0:00:15]} 6. Be3 {[%emt 0:00:06]} Bg7 {[%emt 0:00:05]} 7. f3 {[%emt 0:00:07]} O-O {[%emt 0:00:08]} 8. Qd2 {[%emt 0:00:03]} Nc6 {[%emt 0:00:40]} 9. O-O-O {[%emt 0:00:12]} d5 {[%emt 0:00:24]} 10. exd5 {[%emt 0:00:05]} Nxd5 {[%emt 0:00:04]} 11. Nxc6 {[%emt 0:00:09]} bxc6 {[%emt 0:00:01]} 12. Bd4 {[%emt 0:00:09]} e5 {[%emt 0:01:31]} 13. Bc5 {[%emt 0:00:05]} Be6 {[%emt 0:00:02]} 14. Ne4 {[%emt 0:00:07]} Re8 {[%emt 0:00:01]} 15. h4 {[%emt 0:01:57]} Nb6 {[%emt 0:05:42]} 16. Qxd8 {[%emt 0:15:22]} Rexd8 {[%emt 0:03:06]} 17. Ba6 {[%emt 0:04:20]} Rd5 {[%emt 0:06:40]} 18. Be7 {[%emt 0:27:05]} Ra5 {[%emt 0:19:59]} 19. Bb7 {[%emt 0:03:05]} Re8 {[%emt 0:02:54]} 20. Nf6+ {[%emt 0:03:05]} Bxf6 {[%emt 0:00:03]} 21. Bxf6 {[%emt 0:00:07]} Bd5 {[%emt 0:23:43]} 22. b3 {[%emt 0:17:00]} Rb8 {[%emt 0:02:20]} 23. c4 {[%emt 0:00:29]} Rxb7 {[%emt 0:00:18]} 24. cxd5 {[%emt 0:00:02]} Nxd5 {[%emt 0:00:08]} 25. Bxe5 {[%emt 0:00:05]} Rxa2 {[%emt 0:34:13]} 0-1